fUST/lending_fUST_20250209
["ID","MTS","AMOUNT","RATE_DAILY","PERIOD"]
[352317016,1739040638965,-1651.46,0.00011095,2]
[352317018,1739040638974,-610.32,0.00011095,2]
[352317020,1739040638983,-4013.35,0.00011095,2]
[352317022,1739040638993,-500.0,0.00011095,2]
[352317024,1739040639002,-2278.54,0.00011095,2]
[352317026,1739040639011,-556.29,0.00011095,2]
[352317028,1739040639020,-151.0,0.000111,2]
[352317030,1739040639029,-159.45989176,0.00011132,2]
[352317032,1739040639039,-151.0,0.000112,2]
[352317034,1739040639048,-354.7727591,0.000112,2]
[352317036,1739040639057,-354.7727591,0.000112,2]
[352317038,1739040639066,-354.7727591,0.000112,2]
[352317040,1739040639075,-354.7727591,0.000112,2]
[352317042,1739040639084,-354.7727591,0.000112,2]
[352317044,1739040639093,-354.7727591,0.000112,2]
[352317046,1739040639102,-354.7727591,0.000112,2]
[352317048,1739040639111,-354.7727591,0.000112,2]
[352317050,1739040639121,-354.7727591,0.000112,2]
[352317052,1739040639130,-354.7727591,0.000112,2]
[352317054,1739040639139,-354.7727591,0.000112,2]
[352317056,1739040639149,-500.0,0.00011232,2]
[352317058,1739040639158,-500.0,0.00011232,2]
[352317060,1739040639167,-500.0,0.00011232,2]
[352317062,1739040639177,-696.62,0.00011232,2]
[352317064,1739040639186,-270.48935706,0.00011232,2]
[352317066,1739040639195,-729.54,0.00011232,2]
[352317068,1739040639204,-1210.84,0.00011232,2]
[352317070,1739040639213,-1211.62,0.00011232,2]
[352317072,1739040639222,-500.0,0.00011232,2]
[352317074,1739040639232,-516.94,0.00011232,2]
[352317076,1739040639241,-654.99,0.00011232,2]
[352317078,1739040639250,-500.0,0.00011232,2]
[352317080,1739040639260,-500.0,0.00011232,2]
[352317082,1739040639269,-500.0,0.00011232,2]
[352317084,1739040639278,-500.0,0.00011232,2]
[352317086,1739040639287,-500.0,0.00011232,2]
[352317088,1739040639296,-864.95,0.00011232,2]
[352317090,1739040639305,-500.0,0.00011232,2]
[352317092,1739040639314,-625.05,0.00011232,2]
[352317094,1739040639324,-1092.65,0.00011232,2]
[352317096,1739040639333,-534.0,0.00011232,2]
[352317098,1739040639342,-500.0,0.00011232,2]
[352317100,1739040639352,-386.26406905,0.00011232,2]
[352317102,1739040639361,-727.13,0.00011232,2]
[352317104,1739040639370,-500.0,0.00011232,2]
[352317106,1739040639379,-964.51,0.00011232,2]
[352317108,1739040639389,-887.77,0.00011232,2]
[352317110,1739040639398,-500.0,0.00011232,2]
[352317112,1739040639408,-500.0,0.00011232,2]
[352317114,1739040639417,-240.24,0.00011232,2]
[352317116,1739040639427,-500.0,0.00011232,2]
[352317118,1739040639436,-500.0,0.00011232,2]
[352317120,1739040639445,-580.49,0.00011232,2]
[352317122,1739040639454,-694.75,0.00011232,2]
[352317124,1739040639463,-543.49,0.00011232,2]
[352317126,1739040639475,-500.0,0.00011232,2]
[352317128,1739040639484,-500.0,0.00011232,2]
[352317130,1739040639494,-500.0,0.00011232,2]
[352317132,1739040639503,-984.03,0.00011232,2]
[352317134,1739040639513,-881.91,0.00011232,2]
[352317136,1739040639522,-806.22,0.00011232,2]
[352317138,1739040639532,-612.71,0.00011232,2]
[352317140,1739040639542,-28711.83,0.00011232,2]
[352317142,1739040639555,-11184.0,0.00011232,2]
[352317144,1739040639565,-538.29,0.00011232,2]
[352317146,1739040639574,-895.93,0.00011232,2]
[352317148,1739040639584,-500.0,0.00011232,2]
[352317150,1739040639594,-1476.98,0.00011232,2]
[352317152,1739040639603,-2504.78,0.00011232,2]
[352317154,1739040639612,-1068.33,0.00011232,2]
[352317156,1739040639622,-1222.32,0.00011232,2]
[352317158,1739040639632,-965.99,0.00011232,2]
[352317160,1739040639642,-3697.54,0.00011232,2]
[352317162,1739040639658,-1428.65,0.00011232,2]
[352317164,1739040639673,-500.0,0.00011232,2]
[352317166,1739040639682,-500.0,0.00011232,2]
[352317168,1739040639691,-1114.42,0.00011232,2]
[352317170,1739040639700,-658.58,0.00011232,2]
[352317172,1739040639709,-500.0,0.00011232,2]
[352317173,1739040639720,-500.0,0.00011232,2]
[352317176,1739040639729,-529.78,0.00011232,2]
[352317178,1739040639738,-417.76918412,0.00011232,2]
[352317180,1739040639747,-1011.69,0.00011232,2]
[352317182,1739040639756,-500.0,0.00011232,2]
[352317184,1739040639765,-1359.63,0.00011232,2]
[352317186,1739040639774,-500.0,0.00011232,2]
[352317188,1739040639783,-500.0,0.00011232,2]
[352317190,1739040639793,-500.0,0.00011232,2]
[352317192,1739040639802,-618.99,0.00011232,2]
[352317194,1739040639811,-2565.42,0.00011232,2]
[352317195,1739040639821,-2127.29,0.00011232,2]
[352317197,1739040639831,-768.63,0.00011232,2]
[352317200,1739040639840,-560.96,0.00011232,2]
[352317202,1739040639850,-500.0,0.00011232,2]
[352317204,1739040639860,-1151.76,0.00011232,2]
[352317206,1739040639869,-985.89,0.00011232,2]
[352317208,1739040639878,-563.38,0.00011232,2]
[352317210,1739040639887,-500.0,0.00011232,2]
[352317212,1739040639897,-1083.4,0.00011232,2]
[352317214,1739040639907,-9967.34,0.00011232,2]
[352317216,1739040639917,-500.0,0.00011232,2]
[352317218,1739040639927,-500.0,0.00011232,2]
[352317220,1739040639936,-500.0,0.00011232,2]
[352317222,1739040639945,-2168.09,0.00011232,2]
[352317224,1739040639955,-500.0,0.00011232,2]
[352317226,1739040639963,-598.81,0.00011232,2]
[352317228,1739040639973,-500.0,0.00011232,2]
[352317230,1739040639982,-783.11,0.00011232,2]
[352317232,1739040639993,-5705.3,0.00011232,2]
[352317234,1739040640002,-500.0,0.00011232,2]
[352317236,1739040640011,-971.67,0.00011232,2]
[352317238,1739040640020,-2493.83,0.00011232,2]
[352317240,1739040640029,-555.86,0.00011232,2]
[352317242,1739040640041,-926.69,0.00011232,2]
[352317243,1739040640051,-1651.46,0.00011232,2]
[352317246,1739040640063,-610.32,0.00011232,2]
[352317248,1739040640073,-4013.35,0.00011232,2]
[352317266,1739040640241,-500.0,0.00011232,2]
[352317268,1739040640251,-2278.54,0.00011232,2]
[352317270,1739040640261,-556.29,0.00011232,2]
[352317272,1739040640270,-215.7975175,0.000113,2]
[352317274,1739040640279,-215.7975175,0.000113,2]
[352317276,1739040640288,-215.7975175,0.000113,2]
[352317278,1739040640297,-151.0,0.000113,2]
[352317280,1739040640307,-151.0,0.000113,2]
[352317281,1739040640317,-500.0,0.00011369,2]
[352317283,1739040640327,-500.0,0.00011369,2]
[352317285,1739040640336,-500.0,0.00011369,2]
[352317287,1739040640345,-696.62,0.00011369,2]
[352317289,1739040640357,-729.54,0.00011369,2]
[352317291,1739040640366,-1210.84,0.00011369,2]
[352317293,1739040640375,-1211.62,0.00011369,2]
[352317295,1739040640385,-516.94,0.00011369,2]
[352317297,1739040640397,-654.99,0.00011369,2]
[352317299,1739040640406,-500.0,0.00011369,2]
[352317301,1739040640415,-500.0,0.00011369,2]
[352317303,1739040640425,-210.94,0.00011369,2]
[352317306,1739040640435,-630.21802614,0.00011369,2]
[352317308,1739040640444,-500.0,0.00011369,2]
[352317310,1739040640453,-864.95,0.00011369,2]
[352317312,1739040640463,-500.0,0.00011369,2]
[352317314,1739040640472,-625.05,0.00011369,2]
[352317316,1739040640481,-1092.65,0.00011369,2]
[352317318,1739040640491,-534.0,0.00011369,2]
[352317320,1739040640501,-500.0,0.00011369,2]
[352317322,1739040640510,-727.13,0.00011369,2]
[352317324,1739040640519,-500.0,0.00011369,2]
[352317326,1739040640528,-964.51,0.00011369,2]
[352317328,1739040640539,-887.77,0.00011369,2]
[352317330,1739040640552,-500.0,0.00011369,2]
[352317332,1739040640561,-500.0,0.00011369,2]
[352317334,1739040640570,-500.0,0.00011369,2]
[352317336,1739040640579,-163.30160316,0.00011369,2]
[352317338,1739040640590,-580.49,0.00011369,2]
[352317340,1739040640599,-694.75,0.00011369,2]
[352317342,1739040640608,-543.49,0.00011369,2]
[352317344,1739040640618,-500.0,0.00011369,2]
[352317346,1739040640629,-500.0,0.00011369,2]
[352317348,1739040640640,-984.03,0.00011369,2]
[352317350,1739040640649,-881.91,0.00011369,2]
[352317352,1739040640659,-806.22,0.00011369,2]
[352317354,1739040640668,-612.71,0.00011369,2]
[352317356,1739040640677,-28711.83,0.00011369,2]
[352317358,1739040640686,-11184.0,0.00011369,2]
[352317360,1739040640696,-538.29,0.00011369,2]
[352317362,1739040640706,-895.93,0.00011369,2]
[352317364,1739040640715,-500.0,0.00011369,2]
[352317366,1739040640724,-1476.98,0.00011369,2]
[352317368,1739040640733,-2504.78,0.00011369,2]
[352317370,1739040640744,-1068.33,0.00011369,2]
[352317372,1739040640753,-1222.32,0.00011369,2]
[352317374,1739040640762,-965.99,0.00011369,2]
[352317376,1739040640771,-3697.54,0.00011369,2]
[352317378,1739040640780,-1428.65,0.00011369,2]
[352317380,1739040640789,-500.0,0.00011369,2]
[352317382,1739040640799,-500.0,0.00011369,2]
[352317384,1739040640808,-1114.42,0.00011369,2]
[352317386,1739040640817,-658.58,0.00011369,2]
[352317388,1739040640826,-500.0,0.00011369,2]
[352317390,1739040640835,-500.0,0.00011369,2]
[352317392,1739040640845,-529.78,0.00011369,2]
[352317394,1739040640854,-1011.69,0.00011369,2]
[352317396,1739040640863,-388.6,0.00011369,2]
[352317398,1739040640872,-1359.63,0.00011369,2]
[352317399,1739040640881,-500.0,0.00011369,2]
[352317401,1739040640890,-500.0,0.00011369,2]
[352317403,1739040640900,-500.0,0.00011369,2]
[352317405,1739040640910,-2565.42,0.00011369,2]
[352317407,1739040640920,-2127.29,0.00011369,2]
[352317409,1739040640929,-768.63,0.00011369,2]
[352317411,1739040640939,-560.96,0.00011369,2]
[352317413,1739040640948,-500.0,0.00011369,2]
[352317415,1739040640957,-1151.76,0.00011369,2]
[352317417,1739040640967,-985.89,0.00011369,2]
[352317419,1739040640976,-563.38,0.00011369,2]
[352317421,1739040640985,-500.0,0.00011369,2]
[352317423,1739040640995,-1083.4,0.00011369,2]
[352317425,1739040641004,-9967.34,0.00011369,2]
[352317427,1739040641014,-500.0,0.00011369,2]
[352317429,1739040641024,-500.0,0.00011369,2]
[352317431,1739040641033,-500.0,0.00011369,2]
[352317433,1739040641042,-2168.09,0.00011369,2]
[352317435,1739040641052,-598.81,0.00011369,2]
[352317437,1739040641061,-500.0,0.00011369,2]
[352317439,1739040641070,-783.11,0.00011369,2]
[352317441,1739040641086,-5705.3,0.00011369,2]
[352317443,1739040641097,-500.0,0.00011369,2]
[352317445,1739040641106,-971.67,0.00011369,2]
[352317447,1739040641115,-2493.83,0.00011369,2]
[352317449,1739040641124,-555.86,0.00011369,2]
[352317451,1739040641133,-926.69,0.00011369,2]
[352317453,1739040641142,-1651.46,0.00011369,2]
[352317455,1739040641152,-610.32,0.00011369,2]
[352317457,1739040641162,-4013.35,0.00011369,2]
[352317459,1739040641171,-462.46,0.00011369,2]
[352317461,1739040641180,-2278.54,0.00011369,2]
[352317463,1739040641189,-556.29,0.00011369,2]
[352317465,1739040641198,-215.7975175,0.000114,2]
[352317467,1739040641207,-215.7975175,0.000114,2]
[352317469,1739040641216,-151.0,0.000114,2]
[352317471,1739040641226,-151.0,0.000114,2]
[352317473,1739040641236,-400.4439254,0.00011425,2]
[352317475,1739040641246,-312.0185955,0.00011452,2]
[352317477,1739040641255,-151.0,0.000115,2]
[352317479,1739040641264,-151.0,0.000115,2]
[352317481,1739040641273,-151.0,0.000115,2]
[352317483,1739040641282,-153.0,0.000115,2]
[352317485,1739040641290,-153.0,0.000115,2]
[352317487,1739040641300,-153.0,0.000115,2]
[352317489,1739040641309,-500.0,0.00011506,2]
[352317490,1739040641318,-500.0,0.00011506,2]
[352317492,1739040641328,-500.0,0.00011506,2]
[352317494,1739040641338,-696.62,0.00011506,2]
[352317496,1739040641347,-729.54,0.00011506,2]
[352317498,1739040641356,-1210.84,0.00011506,2]
[352317500,1739040641365,-1211.62,0.00011506,2]
[352317502,1739040641375,-516.94,0.00011506,2]
[352317504,1739040641384,-654.99,0.00011506,2]
[352317506,1739040641393,-500.0,0.00011506,2]
[352317508,1739040641402,-500.0,0.00011506,2]
[352317510,1739040641412,-500.0,0.00011506,2]
[352317512,1739040641421,-864.95,0.00011506,2]
[352317514,1739040641430,-500.0,0.00011506,2]
[352317516,1739040641439,-625.05,0.00011506,2]
[352317518,1739040641449,-1092.65,0.00011506,2]
[352317520,1739040641457,-534.0,0.00011506,2]
[352317522,1739040641466,-500.0,0.00011506,2]
[352317524,1739040641476,-727.13,0.00011506,2]
[352317526,1739040641485,-500.0,0.00011506,2]
[352317528,1739040641494,-964.51,0.00011506,2]
[352317530,1739040641503,-887.77,0.00011506,2]
[352317532,1739040641514,-500.0,0.00011506,2]
[352317534,1739040641525,-500.0,0.00011506,2]
[352317536,1739040641534,-500.0,0.00011506,2]
[352317538,1739040641547,-580.49,0.00011506,2]
[352317540,1739040641559,-694.75,0.00011506,2]
[352317542,1739040641568,-543.49,0.00011506,2]
[352317543,1739040641578,-500.0,0.00011506,2]
[352317545,1739040641588,-500.0,0.00011506,2]
[352317547,1739040641599,-984.03,0.00011506,2]
[352317549,1739040641608,-881.91,0.00011506,2]
[352317551,1739040641617,-806.22,0.00011506,2]
[352317553,1739040641627,-612.71,0.00011506,2]
[352317555,1739040641637,-28711.83,0.00011506,2]
[352317557,1739040641646,-11184.0,0.00011506,2]
[352317559,1739040641655,-538.29,0.00011506,2]
[352317561,1739040641664,-895.93,0.00011506,2]
[352317563,1739040641673,-500.0,0.00011506,2]
[352317565,1739040641683,-1476.98,0.00011506,2]
[352317567,1739040641692,-2504.78,0.00011506,2]
[352317569,1739040641701,-1068.33,0.00011506,2]
[352317571,1739040641711,-1222.32,0.00011506,2]
[352317573,1739040641720,-965.99,0.00011506,2]
[352317575,1739040641730,-3697.54,0.00011506,2]
[352317577,1739040641739,-1428.65,0.00011506,2]
[352317579,1739040641748,-500.0,0.00011506,2]
[352317581,1739040641757,-658.58,0.00011506,2]
[352317583,1739040641767,-1114.42,0.00011506,2]
[352317585,1739040641776,-408.90997083,0.00011506,2]
[352317587,1739040641785,-500.0,0.00011506,2]
[352317589,1739040641794,-529.78,0.00011506,2]
[352317591,1739040641803,-1011.69,0.00011506,2]
[352317592,1739040641813,-1359.63,0.00011506,2]
[352317594,1739040641822,-500.0,0.00011506,2]
[352317596,1739040641831,-500.0,0.00011506,2]
[352317598,1739040641841,-500.0,0.00011506,2]
[352317600,1739040641853,-2565.42,0.00011506,2]
[352317602,1739040641862,-2127.29,0.00011506,2]
[352317604,1739040641871,-768.63,0.00011506,2]
[352317606,1739040641880,-560.96,0.00011506,2]
[352317608,1739040641889,-500.0,0.00011506,2]
[352317610,1739040641899,-1151.76,0.00011506,2]
[352317612,1739040641908,-985.89,0.00011506,2]
[352317614,1739040641917,-563.38,0.00011506,2]
[352317616,1739040641926,-500.0,0.00011506,2]
[352317618,1739040641935,-1083.4,0.00011506,2]
[352317620,1739040641945,-9967.34,0.00011506,2]
[352317622,1739040641954,-500.0,0.00011506,2]
[352317624,1739040641963,-500.0,0.00011506,2]
[352317626,1739040641973,-500.0,0.00011506,2]
[352317627,1739040641982,-2168.09,0.00011506,2]
[352317629,1739040641992,-598.81,0.00011506,2]
[352317631,1739040642001,-500.0,0.00011506,2]
[352317633,1739040642010,-783.11,0.00011506,2]
[352317635,1739040642019,-5705.3,0.00011506,2]
[352317637,1739040642029,-500.0,0.00011506,2]
[352317639,1739040642038,-971.67,0.00011506,2]
[352317641,1739040642048,-2493.83,0.00011506,2]
[352317643,1739040642057,-555.86,0.00011506,2]
[352317645,1739040642067,-926.69,0.00011506,2]
[352317647,1739040642076,-1651.46,0.00011506,2]
[352317649,1739040642086,-610.32,0.00011506,2]
[352317651,1739040642095,-4013.35,0.00011506,2]
[352317653,1739040642107,-2278.54,0.00011506,2]
[352317655,1739040642124,-556.29,0.00011506,2]
[352317657,1739040642138,-13265.39216455,0.0001156,2]
[352317659,1739040642147,-500.0,0.00011567,2]
[352317661,1739040642157,-590.07409029,0.00011567,2]
[352317663,1739040642167,-500.0,0.00011591,2]
[352317665,1739040642176,-151.0,0.000116,2]
[352317667,1739040642186,-151.0,0.000116,2]
[352317669,1739040642195,-500.0,0.00011617,2]
[352317671,1739040642204,-500.0,0.00011623,2]
[352317673,1739040642213,-500.0,0.00011623,2]
[352317674,1739040642223,-305.74029623,0.00011623,2]
[352317676,1739040642232,-160.69142405,0.0001163,2]
[352317678,1739040642241,-500.0,0.0001163,2]
[352317680,1739040642251,-500.0,0.00011642,2]
[352317682,1739040642260,-273.46324749,0.00011642,2]
[352317684,1739040642270,-151.0,0.00011643,2]
[352317686,1739040642279,-151.0,0.00011643,2]
[352317688,1739040642288,-151.0,0.00011643,2]
[352317690,1739040642298,-500.0,0.00011643,2]
[352317692,1739040642307,-500.0,0.00011643,2]
[352317694,1739040642316,-500.0,0.00011643,2]
[352317696,1739040642326,-696.62,0.00011643,2]
[352317698,1739040642335,-729.54,0.00011643,2]
[352317700,1739040642344,-1210.84,0.00011643,2]
[352317701,1739040642354,-1211.62,0.00011643,2]
[352317703,1739040642364,-516.94,0.00011643,2]
[352317705,1739040642373,-654.99,0.00011643,2]
[352317707,1739040642383,-500.0,0.00011643,2]
[352317709,1739040642392,-500.0,0.00011643,2]
[352317711,1739040642402,-500.0,0.00011643,2]
[352317713,1739040642412,-864.95,0.00011643,2]
[352317715,1739040642421,-500.0,0.00011643,2]
[352317717,1739040642431,-625.05,0.00011643,2]
[352317719,1739040642440,-1092.65,0.00011643,2]
[352317721,1739040642450,-534.0,0.00011643,2]
[352317723,1739040642459,-727.13,0.00011643,2]
[352317725,1739040642468,-500.0,0.00011643,2]
[352317727,1739040642477,-964.51,0.00011643,2]
[352317729,1739040642487,-887.77,0.00011643,2]
[352317731,1739040642497,-500.0,0.00011643,2]
[352317732,1739040642506,-344.8,0.00011643,2]
[352317734,1739040642515,-500.0,0.00011643,2]
[352317736,1739040642524,-580.49,0.00011643,2]
[352317738,1739040642533,-694.75,0.00011643,2]
[352317740,1739040642542,-543.49,0.00011643,2]
[352317741,1739040642557,-500.0,0.00011643,2]
[352317742,1739040642567,-500.0,0.00011643,2]
[352317743,1739040642575,-984.03,0.00011643,2]
[352317744,1739040642584,-881.91,0.00011643,2]
[352317745,1739040642595,-806.22,0.00011643,2]
[352317746,1739040642604,-612.71,0.00011643,2]
[352317747,1739040642613,-28711.83,0.00011643,2]
[352317748,1739040642622,-11184.0,0.00011643,2]
[352317749,1739040642633,-538.29,0.00011643,2]
[352317750,1739040642642,-895.93,0.00011643,2]
[352317751,1739040642651,-500.0,0.00011643,2]
[352317752,1739040642661,-1476.98,0.00011643,2]
[352317753,1739040642672,-2504.78,0.00011643,2]
[352317754,1739040642681,-1068.33,0.00011643,2]
[352317757,1739040642690,-1222.32,0.00011643,2]
[352317759,1739040642700,-965.99,0.00011643,2]
[352317761,1739040642709,-3697.54,0.00011643,2]
[352317762,1739040642718,-1428.65,0.00011643,2]
[352317763,1739040642727,-500.0,0.00011643,2]
[352317764,1739040642736,-658.58,0.00011643,2]
[352317766,1739040642745,-1114.42,0.00011643,2]
[352317768,1739040642754,-500.0,0.00011643,2]
[352317770,1739040642763,-529.78,0.00011643,2]
[352317772,1739040642773,-1011.69,0.00011643,2]
[352317775,1739040642782,-1359.63,0.00011643,2]
[352317778,1739040642791,-500.0,0.00011643,2]
[352317780,1739040642800,-500.0,0.00011643,2]
[352317782,1739040642809,-500.0,0.00011643,2]
[352317784,1739040642819,-2565.42,0.00011643,2]
[352317786,1739040642828,-2127.29,0.00011643,2]
[352317788,1739040642838,-768.63,0.00011643,2]
[352317791,1739040642848,-560.96,0.00011643,2]
[352317795,1739040642857,-500.0,0.00011643,2]
[352317799,1739040642867,-1151.76,0.00011643,2]
[352317802,1739040642876,-985.89,0.00011643,2]
[352317805,1739040642885,-563.38,0.00011643,2]
[352317808,1739040642894,-500.0,0.00011643,2]
[352317811,1739040642903,-1083.4,0.00011643,2]
[352317812,1739040642913,-9967.34,0.00011643,2]
[352317814,1739040642923,-500.0,0.00011643,2]
[352317816,1739040642932,-500.0,0.00011643,2]
[352317818,1739040642941,-500.0,0.00011643,2]
[352317820,1739040642950,-2168.09,0.00011643,2]
[352317822,1739040642960,-598.81,0.00011643,2]
[352317825,1739040642969,-500.0,0.00011643,2]
[352317828,1739040642979,-783.11,0.00011643,2]
[352317831,1739040642988,-5705.3,0.00011643,2]
[352317833,1739040642998,-500.0,0.00011643,2]
[352317836,1739040643008,-971.67,0.00011643,2]
[352317838,1739040643018,-2493.83,0.00011643,2]
[352317839,1739040643027,-555.86,0.00011643,2]
[352317841,1739040643036,-926.69,0.00011643,2]
[352317843,1739040643045,-1651.46,0.00011643,2]
[352317845,1739040643054,-610.32,0.00011643,2]
[352317847,1739040643063,-4013.35,0.00011643,2]
[352317849,1739040643073,-2278.54,0.00011643,2]
[352317851,1739040643082,-556.29,0.00011643,2]
[352317853,1739040643091,-500.0,0.00011652,2]
[352317855,1739040643101,-151.0,0.000117,2]
[352317857,1739040643110,-151.0,0.000117,2]
[352317859,1739040643119,-600.0,0.00011703,2]
[352317861,1739040643128,-336.88000531,0.0001172,2]
[352317863,1739040643138,-2500.0,0.00011736,2]
[352317865,1739040643147,-2500.0,0.00011745,2]
[352317867,1739040643158,-2500.0,0.00011754,2]
[352317869,1739040643168,-2500.0,0.00011762,2]
[352317871,1739040643179,-2500.0,0.00011771,2]
[352317873,1739040643189,-151.0,0.0001178,2]
[352317875,1739040643199,-592.8829302,0.0001178,2]
[352317877,1739040643209,-174.103427,0.0001178,2]
[352317879,1739040643218,-151.0,0.0001178,2]
[352317881,1739040643227,-643.358,0.0001178,2]
[352317883,1739040643237,-500.0,0.0001178,2]
[352317885,1739040643246,-500.0,0.0001178,2]
[352317887,1739040643255,-500.0,0.0001178,2]
[352317889,1739040643264,-696.62,0.0001178,2]
[352317891,1739040643274,-729.54,0.0001178,2]
[352317893,1739040643283,-151.0,0.0001178,2]
[352317895,1739040643292,-1210.84,0.0001178,2]
[352317897,1739040643302,-1211.62,0.0001178,2]
[352317899,1739040643311,-151.0,0.0001178,2]
[352317901,1739040643320,-516.94,0.0001178,2]
[352317903,1739040643330,-654.99,0.0001178,2]
[352317905,1739040643339,-500.0,0.0001178,2]
[352317907,1739040643348,-500.0,0.0001178,2]
[352317909,1739040643357,-500.0,0.0001178,2]
[352317910,1739040643371,-864.95,0.0001178,2]
[352317913,1739040643382,-500.0,0.0001178,2]
[352317914,1739040643391,-151.0,0.0001178,2]
[352317916,1739040643401,-625.05,0.0001178,2]
[352317918,1739040643415,-1092.65,0.0001178,2]
[352317921,1739040643425,-534.0,0.0001178,2]
[352317923,1739040643435,-151.0,0.0001178,2]
[352317925,1739040643444,-151.0,0.0001178,2]
[352317927,1739040643453,-727.13,0.0001178,2]
[352317930,1739040643462,-500.0,0.0001178,2]
[352317931,1739040643471,-964.51,0.0001178,2]
[352317933,1739040643481,-887.77,0.0001178,2]
[352317935,1739040643491,-500.0,0.0001178,2]
[352317937,1739040643500,-2500.0,0.0001178,2]
[352317939,1739040643509,-334.156484,0.0001178,2]
[352317942,1739040643519,-334.156484,0.0001178,2]
[352317944,1739040643528,-500.0,0.0001178,2]
[352317946,1739040643537,-151.0,0.0001178,2]
[352317948,1739040643548,-1329.524983,0.0001178,2]
[352317949,1739040643560,-580.49,0.0001178,2]
[352317951,1739040643569,-1329.524983,0.0001178,2]
[352317953,1739040643578,-694.75,0.0001178,2]
[352317955,1739040643588,-543.49,0.0001178,2]
[352317957,1739040643598,-500.0,0.0001178,2]
[352317960,1739040643608,-500.0,0.0001178,2]
[352317961,1739040643617,-161.604728,0.0001178,2]
[352317964,1739040643628,-161.604728,0.0001178,2]
[352317966,1739040643638,-984.03,0.0001178,2]
[352317967,1739040643647,-881.91,0.0001178,2]
[352317969,1739040643661,-151.0,0.0001178,2]
[352317971,1739040643671,-806.22,0.0001178,2]
[352317973,1739040643680,-612.71,0.0001178,2]
[352317975,1739040643689,-28711.83,0.0001178,2]
[352317977,1739040643698,-11184.0,0.0001178,2]
[352317979,1739040643707,-538.29,0.0001178,2]
[352317981,1739040643717,-895.93,0.0001178,2]
[352317983,1739040643726,-500.0,0.0001178,2]
[352317985,1739040643735,-1476.98,0.0001178,2]
[352317987,1739040643744,-2504.78,0.0001178,2]
[352317989,1739040643753,-151.0,0.0001178,2]
[352317991,1739040643762,-1068.33,0.0001178,2]
[352317993,1739040643771,-1222.32,0.0001178,2]
[352317995,1739040643780,-965.99,0.0001178,2]
[352317997,1739040643789,-3697.54,0.0001178,2]
[352317999,1739040643798,-500.0,0.0001178,2]
[352318001,1739040643807,-1428.65,0.0001178,2]
[352318003,1739040643818,-658.58,0.0001178,2]
[352318006,1739040643829,-1114.42,0.0001178,2]
[352318007,1739040643839,-500.0,0.0001178,2]
[352318009,1739040643848,-529.78,0.0001178,2]
[352318011,1739040643857,-1011.69,0.0001178,2]
[352318013,1739040643867,-608.463215,0.0001178,2]
[352318015,1739040643876,-608.463215,0.0001178,2]
[352318018,1739040643887,-1359.63,0.0001178,2]
[352318020,1739040643896,-347.897633,0.0001178,2]